[Event "Titled Tuesday Blitz October 18 Late 2022"]
[White "Gabrielian, Artur"]
[Black "Hamitevici, Vladimir"]
[WhiteFideId "4131002"]
[BlackFideId "13902393"]
[WhiteElo "2786"]
[BlackElo "2556"]
[Result "1-0"]
[Round "05"]
[TimeControl "180+1"]
[Date "2022.10.19"]
[WhiteClock "0:00:13"]
[BlackClock "0:00:04"]

1. e4 {[%clk 0:03:00]}  e5 {[%clk 0:02:59]} 2. Nf3 {[%clk 0:03:00]}  Nc6 {[%clk 0:02:59]} 3. Bc4 {[%clk 0:03:00]}  Bc5 {[%clk 0:02:59]} 4. d3 {[%clk 0:03:00]}  Nf6 {[%clk 0:02:58]} 5. Bg5 {[%clk 0:03:00]}  h6 {[%clk 0:02:58]} 6. Bh4 {[%clk 0:03:00]}  Be7 {[%clk 0:02:57]} 7. Bg3 {[%clk 0:02:59]}  d6 {[%clk 0:02:56]} 8. a4 {[%clk 0:02:59]}  O-O {[%clk 0:02:40]} 9. h3 {[%clk 0:02:58]}  Re8 {[%clk 0:02:29]} 10. c3 {[%clk 0:02:47]}  Bf8 {[%clk 0:02:26]} 11. O-O {[%clk 0:02:46]}  Be6 {[%clk 0:02:26]} 12. Nbd2 {[%clk 0:02:43]}  Qd7 {[%clk 0:02:02]} 13. Re1 {[%clk 0:02:41]}  Rad8 {[%clk 0:02:01]} 14. a5 {[%clk 0:02:40]}  a6 {[%clk 0:02:01]} 15. Nf1 {[%clk 0:02:29]}  d5 {[%clk 0:01:50]} 16. exd5 {[%clk 0:02:28]}  Bxd5 {[%clk 0:01:51]} 17. Ne3 {[%clk 0:02:17]}  Bxc4 {[%clk 0:01:45]} 18. Nxc4 {[%clk 0:02:05]}  e4 {[%clk 0:01:38]} 19. Nfe5 {[%clk 0:02:02]}  Nxe5 {[%clk 0:01:35]} 20. Nxe5 {[%clk 0:02:01]}  Qb5 {[%clk 0:01:36]} 21. d4 {[%clk 0:01:39]}  c5 {[%clk 0:01:33]} 22. Qa4 {[%clk 0:00:56]}  cxd4 {[%clk 0:01:28]} 23. cxd4 {[%clk 0:00:50]}  Qxb2 {[%clk 0:00:58]} 24. Rab1 {[%clk 0:00:48]}  Qxd4 {[%clk 0:00:57]} 25. Qxd4 {[%clk 0:00:47]}  Rxd4 {[%clk 0:00:58]} 26. Rxb7 {[%clk 0:00:47]}  Bd6 {[%clk 0:00:56]} 27. Nc6 {[%clk 0:00:43]}  Rd5 {[%clk 0:00:54]} 28. Bxd6 {[%clk 0:00:41]}  Rxd6 {[%clk 0:00:55]} 29. Rb6 {[%clk 0:00:37]}  Ree6 {[%clk 0:00:53]} 30. Rc1 {[%clk 0:00:33]}  Kh7 {[%clk 0:00:43]} 31. Rxa6 {[%clk 0:00:27]}  Nd5 {[%clk 0:00:43]} 32. Rd1 {[%clk 0:00:19]}  f5 {[%clk 0:00:27]} 33. Ra8 {[%clk 0:00:15]}  e3 {[%clk 0:00:24]} 34. fxe3 {[%clk 0:00:14]}  Nxe3 {[%clk 0:00:25]} 35. Rxd6 {[%clk 0:00:14]}  Rxd6 {[%clk 0:00:26]} 36. Rc8 {[%clk 0:00:13]}  Rd2 {[%clk 0:00:26]} 37. a6 {[%clk 0:00:14]}  Rxg2+ {[%clk 0:00:26]} 38. Kh1 {[%clk 0:00:14]}  Rg3 {[%clk 0:00:13]} 39. a7 {[%clk 0:00:13]}  f4 {[%clk 0:00:06]} 40. a8=Q {[%clk 0:00:13]}  Rxh3+ {[%clk 0:00:06]} 41. Kg1 {[%clk 0:00:13]}  Rg3+ {[%clk 0:00:07]} 42. Kf2 {[%clk 0:00:13]}  Ng4+ {[%clk 0:00:07]} 43. Ke1 {[%clk 0:00:12]}  Rg1+ {[%clk 0:00:06]} 44. Kd2 {[%clk 0:00:12]}  Rg2+ {[%clk 0:00:04]} 45. Kc3 {[%clk 0:00:13]}  Rg3+ {[%clk 0:00:04]} 46. Kb4 {[%clk 0:00:13]} 1-0


[Site "https://www.chess.com"]

[Event "Titled Tuesday Blitz October 18 Late 2022"]
[White "Girel, Joseph"]
[Black "Al Hosani, Omran"]
[WhiteFideId "36033561"]
[BlackFideId "9308733"]
[WhiteElo "2281"]
[BlackElo "2167"]
[Result "0-1"]
[Round "05"]
[TimeControl "180+1"]
[Date "2022.10.18"]
[WhiteClock "0:00:11"]
[BlackClock "0:00:08"]

1. e4 {[%clk 0:03:00]}  e5 {[%clk 0:02:58]} 2. Nf3 {[%clk 0:03:00]}  Nc6 {[%clk 0:02:59]} 3. Bb5 {[%clk 0:03:01]}  a6 {[%clk 0:02:59]} 4. Ba4 {[%clk 0:03:01]}  Nf6 {[%clk 0:03:00]} 5. Nc3 {[%clk 0:03:02]}  Be7 {[%clk 0:03:00]} 6. Bxc6 {[%clk 0:03:00]}  dxc6 {[%clk 0:03:00]} 7. a3 {[%clk 0:03:01]}  Bg4 {[%clk 0:02:58]} 8. h3 {[%clk 0:02:59]}  Bh5 {[%clk 0:02:56]} 9. d3 {[%clk 0:02:57]}  Nd7 {[%clk 0:02:53]} 10. Qe2 {[%clk 0:02:55]}  O-O {[%clk 0:02:53]} 11. Be3 {[%clk 0:02:54]}  Re8 {[%clk 0:02:44]} 12. g4 {[%clk 0:02:54]}  Bg6 {[%clk 0:02:44]} 13. h4 {[%clk 0:02:54]}  h5 {[%clk 0:02:42]} 14. g5 {[%clk 0:02:54]}  Bd6 {[%clk 0:02:38]} 15. O-O-O {[%clk 0:02:54]}  Qe7 {[%clk 0:02:36]} 16. Rhe1 {[%clk 0:02:46]}  Rad8 {[%clk 0:02:31]} 17. d4 {[%clk 0:02:47]}  Bxa3 {[%clk 0:02:30]} 18. bxa3 {[%clk 0:02:29]}  Qxa3+ {[%clk 0:02:29]} 19. Kd2 {[%clk 0:02:30]}  Nc5 {[%clk 0:02:17]} 20. Qc4 {[%clk 0:02:12]}  b5 {[%clk 0:02:14]} 21. Ra1 {[%clk 0:01:48]}  Qxa1 {[%clk 0:02:00]} 22. Qxc5 {[%clk 0:01:48]}  Qa5 {[%clk 0:01:36]} 23. Nxe5 {[%clk 0:01:43]}  Bxe4 {[%clk 0:01:30]} 24. Nc4 {[%clk 0:01:31]}  Re5 {[%clk 0:00:56]} 25. Nxa5 {[%clk 0:01:08]}  Rxc5 {[%clk 0:00:56]} 26. Nxe4 {[%clk 0:01:09]}  Rf5 {[%clk 0:00:23]} 27. Nxc6 {[%clk 0:01:06]}  Re8 {[%clk 0:00:23]} 28. Kd3 {[%clk 0:01:05]}  Rf3 {[%clk 0:00:21]} 29. Ra1 {[%clk 0:01:00]}  Rh3 {[%clk 0:00:21]} 30. Rxa6 {[%clk 0:00:55]}  Rxh4 {[%clk 0:00:21]} 31. Ne5 {[%clk 0:00:55]}  Rh1 {[%clk 0:00:14]} 32. Ra7 {[%clk 0:00:53]}  h4 {[%clk 0:00:13]} 33. Ke2 {[%clk 0:00:31]}  h3 {[%clk 0:00:13]} 34. Kf3 {[%clk 0:00:32]}  Rg1 {[%clk 0:00:12]} 35. Ng4 {[%clk 0:00:32]}  Rxe4 {[%clk 0:00:09]} 36. Ra8+ {[%clk 0:00:22]}  Kh7 {[%clk 0:00:09]} 37. g6+ {[%clk 0:00:19]}  fxg6 {[%clk 0:00:09]} 38. Nh2 {[%clk 0:00:15]}  Re7 {[%clk 0:00:08]} 39. Bf4 {[%clk 0:00:15]}  Rf7 {[%clk 0:00:08]} 40. Ke3 {[%clk 0:00:14]}  Re1+ {[%clk 0:00:08]} 41. Kf3 {[%clk 0:00:14]}  g5 {[%clk 0:00:09]} 42. Kg3 {[%clk 0:00:14]}  Rxf4 {[%clk 0:00:08]} 43. Kxh3 {[%clk 0:00:14]}  Rg1 {[%clk 0:00:08]} 44. Ng4 {[%clk 0:00:13]}  Rfxg4 {[%clk 0:00:08]} 45. Ra3 {[%clk 0:00:11]}  Rh4# {[%clk 0:00:08]} 0-1


[Site "https://www.chess.com"]

[Event "Titled Tuesday Blitz October 18 Late 2022"]
[White "Girsh, Daniel"]
[Black "Luxama, Jacques Muller"]
[WhiteFideId "30949190"]
[BlackFideId "11900113"]
[WhiteElo "2075"]
[BlackElo "1931"]
[Result "1-0"]
[Round "05"]
[TimeControl "180+1"]
[Date "2022.10.19"]
[WhiteClock "0:00:14"]
[BlackClock "0:00:01"]

1. d4 {[%clk 0:03:00]}  Nf6 {[%clk 0:02:56]} 2. Nc3 {[%clk 0:03:01]}  d5 {[%clk 0:02:55]} 3. Bf4 {[%clk 0:03:01]}  e6 {[%clk 0:02:53]} 4. Nb5 {[%clk 0:03:01]}  Na6 {[%clk 0:02:52]} 5. e3 {[%clk 0:03:01]}  Be7 {[%clk 0:02:46]} 6. Nf3 {[%clk 0:02:59]}  O-O {[%clk 0:02:46]} 7. Ne5 {[%clk 0:03:00]}  c6 {[%clk 0:02:43]} 8. Nc3 {[%clk 0:03:00]}  Nc7 {[%clk 0:02:31]} 9. Bd3 {[%clk 0:02:59]}  c5 {[%clk 0:02:31]} 10. O-O {[%clk 0:02:59]}  c4 {[%clk 0:02:31]} 11. Be2 {[%clk 0:02:58]}  b5 {[%clk 0:02:30]} 12. a3 {[%clk 0:02:58]}  Bb7 {[%clk 0:02:28]} 13. b3 {[%clk 0:02:20]}  a5 {[%clk 0:01:53]} 14. bxc4 {[%clk 0:02:20]}  bxc4 {[%clk 0:01:51]} 15. Rb1 {[%clk 0:02:15]}  Rb8 {[%clk 0:01:44]} 16. Nb5 {[%clk 0:02:08]}  Nxb5 {[%clk 0:01:37]} 17. Rxb5 {[%clk 0:02:09]}  Bd6 {[%clk 0:01:10]} 18. Qb1 {[%clk 0:01:47]}  Qc7 {[%clk 0:01:09]} 19. Qa2 {[%clk 0:01:06]}  Ne4 {[%clk 0:01:06]} 20. Qa1 {[%clk 0:00:54]}  Ba6 {[%clk 0:01:03]} 21. Rxb8 {[%clk 0:00:53]}  Rxb8 {[%clk 0:01:02]} 22. f3 {[%clk 0:00:53]}  Nf6 {[%clk 0:00:47]} 23. Rb1 {[%clk 0:00:47]}  Nh5 {[%clk 0:00:47]} 24. Rxb8+ {[%clk 0:00:46]}  Qxb8 {[%clk 0:00:46]} 25. Nc6 {[%clk 0:00:45]}  Qc7 {[%clk 0:00:45]} 26. Bxd6 {[%clk 0:00:44]}  Qxd6 {[%clk 0:00:45]} 27. Nxa5 {[%clk 0:00:43]}  Qb6 {[%clk 0:00:43]} 28. Qc3 {[%clk 0:00:43]}  Qb1+ {[%clk 0:00:24]} 29. Kf2 {[%clk 0:00:43]}  g6 {[%clk 0:00:20]} 30. Qb4 {[%clk 0:00:33]}  Qh1 {[%clk 0:00:18]} 31. Qb8+ {[%clk 0:00:31]}  Kg7 {[%clk 0:00:18]} 32. Nc6 {[%clk 0:00:25]}  Bb5 {[%clk 0:00:14]} 33. Qxb5 {[%clk 0:00:20]}  Qxh2 {[%clk 0:00:13]} 34. Qb8 {[%clk 0:00:20]}  Qh4+ {[%clk 0:00:12]} 35. Kg1 {[%clk 0:00:18]}  Ng3 {[%clk 0:00:11]} 36. Qe5+ {[%clk 0:00:17]}  f6 {[%clk 0:00:11]} 37. Qc7+ {[%clk 0:00:17]}  Kf8 {[%clk 0:00:07]} 38. Qd6+ {[%clk 0:00:15]}  Kg7 {[%clk 0:00:06]} 39. Qe7+ {[%clk 0:00:15]}  Kh6 {[%clk 0:00:05]} 40. Qf8+ {[%clk 0:00:15]}  Kh5 {[%clk 0:00:05]} 41. Bd1 {[%clk 0:00:14]}  Qh1+ {[%clk 0:00:03]} 42. Kf2 {[%clk 0:00:14]}  Qh2 {[%clk 0:00:01]} 43. f4+ {[%clk 0:00:14]} 1-0


[Site "https://www.chess.com"]

[Event "Titled Tuesday Blitz October 18 Late 2022"]
[White "Guliyev, Namig"]
[Black "Fedoseev, Vladimir"]
[WhiteFideId "13400363"]
[BlackFideId "24130737"]
[WhiteElo "2526"]
[BlackElo "2726"]
[Result "1-0"]
[Round "05"]
[TimeControl "180+1"]
[Date "2022.10.18"]
[WhiteClock "0:00:12"]
[BlackClock "0:00:03"]

1. e4 {[%clk 0:03:00]}  e5 {[%clk 0:01:41]} 2. Nf3 {[%clk 0:03:00]}  Nc6 {[%clk 0:01:42]} 3. Bb5 {[%clk 0:03:00]}  Nf6 {[%clk 0:01:41]} 4. O-O {[%clk 0:02:59]}  Nxe4 {[%clk 0:01:41]} 5. Re1 {[%clk 0:02:59]}  Nd6 {[%clk 0:01:41]} 6. a4 {[%clk 0:03:00]}  f6 {[%clk 0:01:35]} 7. d4 {[%clk 0:02:56]}  Nf7 {[%clk 0:01:33]} 8. Nc3 {[%clk 0:02:41]}  d6 {[%clk 0:01:31]} 9. Nd5 {[%clk 0:02:35]}  Bd7 {[%clk 0:01:21]} 10. c3 {[%clk 0:02:34]}  Be7 {[%clk 0:01:19]} 11. a5 {[%clk 0:02:33]}  a6 {[%clk 0:01:17]} 12. Bc4 {[%clk 0:02:30]}  O-O {[%clk 0:01:15]} 13. b4 {[%clk 0:02:26]}  Qc8 {[%clk 0:01:05]} 14. Qb3 {[%clk 0:02:19]}  Bd8 {[%clk 0:01:04]} 15. h3 {[%clk 0:02:15]}  Ne7 {[%clk 0:01:00]} 16. Nxe7+ {[%clk 0:02:04]}  Bxe7 {[%clk 0:00:59]} 17. Ra2 {[%clk 0:01:44]}  Qe8 {[%clk 0:00:58]} 18. Rae2 {[%clk 0:01:39]}  Kh8 {[%clk 0:00:57]} 19. Nh2 {[%clk 0:01:31]}  Bb5 {[%clk 0:00:39]} 20. f4 {[%clk 0:01:25]}  Bxc4 {[%clk 0:00:30]} 21. Qxc4 {[%clk 0:01:25]}  Qd7 {[%clk 0:00:30]} 22. dxe5 {[%clk 0:00:38]}  dxe5 {[%clk 0:00:30]} 23. Nf3 {[%clk 0:00:33]}  Bd6 {[%clk 0:00:20]} 24. fxe5 {[%clk 0:00:30]}  Nxe5 {[%clk 0:00:20]} 25. Nxe5 {[%clk 0:00:30]}  fxe5 {[%clk 0:00:18]} 26. Qe4 {[%clk 0:00:27]}  Qc6 {[%clk 0:00:16]} 27. Qxc6 {[%clk 0:00:24]}  bxc6 {[%clk 0:00:17]} 28. Be3 {[%clk 0:00:23]}  Kg8 {[%clk 0:00:16]} 29. Rd1 {[%clk 0:00:23]}  Rad8 {[%clk 0:00:17]} 30. Rf2 {[%clk 0:00:23]}  Rxf2 {[%clk 0:00:16]} 31. Kxf2 {[%clk 0:00:24]}  Kf7 {[%clk 0:00:16]} 32. Kf3 {[%clk 0:00:24]}  Ke6 {[%clk 0:00:16]} 33. Ke4 {[%clk 0:00:24]}  Rb8 {[%clk 0:00:14]} 34. h4 {[%clk 0:00:22]}  Be7 {[%clk 0:00:14]} 35. h5 {[%clk 0:00:21]}  Rb5 {[%clk 0:00:14]} 36. h6 {[%clk 0:00:19]}  gxh6 {[%clk 0:00:13]} 37. Rh1 {[%clk 0:00:18]}  Bf8 {[%clk 0:00:02]} 38. Bxh6 {[%clk 0:00:17]}  Bd6 {[%clk 0:00:02]} 39. Be3 {[%clk 0:00:16]}  c5 {[%clk 0:00:02]} 40. Rh6+ {[%clk 0:00:16]}  Kd7 {[%clk 0:00:02]} 41. bxc5 {[%clk 0:00:15]}  Bxc5 {[%clk 0:00:03]} 42. Rxa6 {[%clk 0:00:12]} 1-0


[Site "https://www.chess.com"]

[Event "Titled Tuesday Blitz October 18 Late 2022"]
[White "Hajiyev, Kanan"]
[Black "Hoffmann, Asa"]
[WhiteFideId "13404148"]
[BlackFideId "2001470"]
[WhiteElo "2118"]
[BlackElo "2117"]
[Result "1-0"]
[Round "05"]
[TimeControl "180+1"]
[Date "2022.10.19"]
[WhiteClock "0:00:32"]
[BlackClock "0:00:59"]

1. d4 {[%clk 0:02:41]}  Nf6 {[%clk 0:02:57]} 2. Nf3 {[%clk 0:02:41]}  d6 {[%clk 0:02:56]} 3. c4 {[%clk 0:02:42]}  c6 {[%clk 0:02:53]} 4. g3 {[%clk 0:02:43]}  Bf5 {[%clk 0:02:53]} 5. Bg2 {[%clk 0:02:43]}  h6 {[%clk 0:02:52]} 6. O-O {[%clk 0:02:44]}  Nbd7 {[%clk 0:02:52]} 7. Nc3 {[%clk 0:02:44]}  e5 {[%clk 0:02:52]} 8. Qb3 {[%clk 0:02:29]}  Qb6 {[%clk 0:02:51]} 9. c5 {[%clk 0:02:21]}  Qxb3 {[%clk 0:02:40]} 10. axb3 {[%clk 0:02:22]}  e4 {[%clk 0:02:32]} 11. Nd2 {[%clk 0:02:02]}  dxc5 {[%clk 0:02:31]} 12. e3 {[%clk 0:01:38]}  cxd4 {[%clk 0:02:27]} 13. exd4 {[%clk 0:01:39]}  Be7 {[%clk 0:02:08]} 14. Ndxe4 {[%clk 0:01:35]}  O-O {[%clk 0:02:07]} 15. Re1 {[%clk 0:01:34]}  Rfe8 {[%clk 0:02:07]} 16. Bf4 {[%clk 0:01:33]}  Bb4 {[%clk 0:02:04]} 17. Nd6 {[%clk 0:01:31]}  Bxd6 {[%clk 0:01:55]} 18. Bxd6 {[%clk 0:01:32]}  Rxe1+ {[%clk 0:01:52]} 19. Rxe1 {[%clk 0:01:32]}  Re8 {[%clk 0:01:51]} 20. Rxe8+ {[%clk 0:01:26]}  Nxe8 {[%clk 0:01:50]} 21. Bc5 {[%clk 0:01:21]}  Nxc5 {[%clk 0:01:47]} 22. dxc5 {[%clk 0:01:22]}  Nc7 {[%clk 0:01:46]} 23. b4 {[%clk 0:01:19]}  a6 {[%clk 0:01:45]} 24. Kf1 {[%clk 0:01:13]}  Kf8 {[%clk 0:01:44]} 25. Ke2 {[%clk 0:01:14]}  Ke7 {[%clk 0:01:44]} 26. Ke3 {[%clk 0:01:14]}  Be6 {[%clk 0:01:41]} 27. Kd4 {[%clk 0:01:07]}  Bb3 {[%clk 0:01:39]} 28. Bh3 {[%clk 0:01:06]}  Ne6+ {[%clk 0:01:35]} 29. Bxe6 {[%clk 0:01:05]}  Kxe6 {[%clk 0:01:33]} 30. Ke4 {[%clk 0:01:05]}  f5+ {[%clk 0:01:30]} 31. Kf4 {[%clk 0:01:04]}  g5+ {[%clk 0:01:30]} 32. Ke3 {[%clk 0:01:04]}  Ke5 {[%clk 0:01:28]} 33. f4+ {[%clk 0:01:04]}  gxf4+ {[%clk 0:01:26]} 34. gxf4+ {[%clk 0:01:05]}  Kf6 {[%clk 0:01:26]} 35. Ne2 {[%clk 0:01:01]}  Bc2 {[%clk 0:01:21]} 36. Nd4 {[%clk 0:00:58]}  Be4 {[%clk 0:01:21]} 37. Nb3 {[%clk 0:00:53]}  Ke6 {[%clk 0:01:20]} 38. Kd4 {[%clk 0:00:50]}  Kd7 {[%clk 0:01:15]} 39. Ke5 {[%clk 0:00:46]}  h5 {[%clk 0:01:14]} 40. h4 {[%clk 0:00:45]}  Kc7 {[%clk 0:01:10]} 41. Nd4 {[%clk 0:00:43]}  b6 {[%clk 0:01:09]} 42. Nxf5 {[%clk 0:00:42]}  Bf3 {[%clk 0:01:07]} 43. Nd4 {[%clk 0:00:39]}  Bg4 {[%clk 0:01:06]} 44. f5 {[%clk 0:00:36]}  a5 {[%clk 0:01:05]} 45. cxb6+ {[%clk 0:00:35]}  Kxb6 {[%clk 0:01:04]} 46. bxa5+ {[%clk 0:00:36]}  Kxa5 {[%clk 0:01:04]} 47. Nxc6+ {[%clk 0:00:36]}  Kb6 {[%clk 0:01:04]} 48. f6 {[%clk 0:00:32]}  Kxc6 {[%clk 0:00:59]} 49. f7 {[%clk 0:00:32]} 1-0


[Site "https://www.chess.com"]

[Event "Titled Tuesday Blitz October 18 Late 2022"]
[White "Harvey, Marcus R"]
[Black "Ter-Sahakyan, Samvel"]
[WhiteFideId "400092"]
[BlackFideId "13302531"]
[WhiteElo "2457"]
[BlackElo "2604"]
[Result "0-1"]
[Round "05"]
[TimeControl "180+1"]
[Date "2022.10.18"]
[WhiteClock "0:00:08"]
[BlackClock "0:00:11"]

1. Nf3 {[%clk 0:03:00]}  d5 {[%clk 0:02:59]} 2. b3 {[%clk 0:03:00]}  c5 {[%clk 0:02:58]} 3. e3 {[%clk 0:03:00]}  a6 {[%clk 0:02:54]} 4. Bb2 {[%clk 0:03:00]}  Nc6 {[%clk 0:02:55]} 5. d4 {[%clk 0:03:00]}  Nf6 {[%clk 0:02:55]} 6. Be2 {[%clk 0:03:00]}  Bg4 {[%clk 0:02:52]} 7. O-O {[%clk 0:02:59]}  e6 {[%clk 0:02:52]} 8. c4 {[%clk 0:02:58]}  cxd4 {[%clk 0:02:45]} 9. cxd5 {[%clk 0:02:55]}  Nxd5 {[%clk 0:02:23]} 10. Nxd4 {[%clk 0:02:54]}  Bxe2 {[%clk 0:02:19]} 11. Qxe2 {[%clk 0:02:53]}  Nxd4 {[%clk 0:02:16]} 12. Bxd4 {[%clk 0:02:53]}  Nf6 {[%clk 0:01:59]} 13. Qf3 {[%clk 0:02:49]}  Qd5 {[%clk 0:01:58]} 14. Qxd5 {[%clk 0:02:44]}  Nxd5 {[%clk 0:01:58]} 15. Rc1 {[%clk 0:02:43]}  f6 {[%clk 0:01:56]} 16. e4 {[%clk 0:02:35]}  Nf4 {[%clk 0:01:48]} 17. Kf1 {[%clk 0:02:23]}  Bd6 {[%clk 0:01:25]} 18. Nd2 {[%clk 0:02:23]}  b5 {[%clk 0:01:09]} 19. Nf3 {[%clk 0:02:04]}  e5 {[%clk 0:01:09]} 20. Be3 {[%clk 0:01:57]}  Ne6 {[%clk 0:01:09]} 21. Rc6 {[%clk 0:01:30]}  Kd7 {[%clk 0:01:09]} 22. Rac1 {[%clk 0:01:30]}  Rhc8 {[%clk 0:01:08]} 23. Rxc8 {[%clk 0:01:28]}  Rxc8 {[%clk 0:01:09]} 24. Rxc8 {[%clk 0:01:27]}  Kxc8 {[%clk 0:01:10]} 25. Ke2 {[%clk 0:01:27]}  Kc7 {[%clk 0:01:07]} 26. Ne1 {[%clk 0:01:16]}  Kc6 {[%clk 0:01:04]} 27. Nd3 {[%clk 0:01:16]}  a5 {[%clk 0:01:01]} 28. g3 {[%clk 0:01:13]}  a4 {[%clk 0:01:00]} 29. f4 {[%clk 0:01:12]}  exf4 {[%clk 0:00:49]} 30. gxf4 {[%clk 0:01:10]}  g6 {[%clk 0:00:50]} 31. h3 {[%clk 0:00:52]}  f5 {[%clk 0:00:50]} 32. Kf3 {[%clk 0:00:50]}  Nd8 {[%clk 0:00:39]} 33. Nb2 {[%clk 0:00:46]}  axb3 {[%clk 0:00:36]} 34. axb3 {[%clk 0:00:46]}  Nb7 {[%clk 0:00:36]} 35. Nd3 {[%clk 0:00:21]}  Na5 {[%clk 0:00:37]} 36. b4 {[%clk 0:00:21]}  Nc4 {[%clk 0:00:37]} 37. e5 {[%clk 0:00:20]}  Be7 {[%clk 0:00:35]} 38. Bc5 {[%clk 0:00:21]}  Bd8 {[%clk 0:00:28]} 39. e6 {[%clk 0:00:18]}  Bf6 {[%clk 0:00:28]} 40. Ne5+ {[%clk 0:00:07]}  Nxe5+ {[%clk 0:00:25]} 41. fxe5 {[%clk 0:00:07]}  Bxe5 {[%clk 0:00:26]} 42. Ke3 {[%clk 0:00:05]}  g5 {[%clk 0:00:21]} 43. Kf3 {[%clk 0:00:04]}  h5 {[%clk 0:00:21]} 44. Ke3 {[%clk 0:00:04]}  Bd6 {[%clk 0:00:18]} 45. Kd4 {[%clk 0:00:03]}  g4 {[%clk 0:00:13]} 46. e7 {[%clk 0:00:03]}  Bxc5+ {[%clk 0:00:12]} 47. bxc5 {[%clk 0:00:04]}  Kd7 {[%clk 0:00:12]} 48. hxg4 {[%clk 0:00:03]}  hxg4 {[%clk 0:00:12]} 49. Kd5 {[%clk 0:00:04]}  g3 {[%clk 0:00:08]} 50. e8=Q+ {[%clk 0:00:03]}  Kxe8 {[%clk 0:00:08]} 51. Kc6 {[%clk 0:00:04]}  g2 {[%clk 0:00:08]} 52. Kb7 {[%clk 0:00:05]}  g1=Q {[%clk 0:00:08]} 53. c6 {[%clk 0:00:06]}  Qg2 {[%clk 0:00:09]} 54. Kb6 {[%clk 0:00:06]}  Qxc6+ {[%clk 0:00:09]} 55. Kxc6 {[%clk 0:00:06]}  f4 {[%clk 0:00:09]} 56. Kxb5 {[%clk 0:00:07]}  f3 {[%clk 0:00:10]} 57. Kc4 {[%clk 0:00:08]}  f2 {[%clk 0:00:10]} 58. Kd3 {[%clk 0:00:08]}  f1=Q+ {[%clk 0:00:11]} 0-1


[Site "https://www.chess.com"]

[Event "Titled Tuesday Blitz October 18 Late 2022"]
[White "Hirneise, Jens"]
[Black "Roque Sola, Gisela"]
[WhiteFideId "24614734"]
[BlackFideId "5120241"]
[WhiteElo "2344"]
[BlackElo "1961"]
[Result "1/2-1/2"]
[Round "05"]
[TimeControl "180+1"]
[Date "2022.10.19"]
[WhiteClock "0:00:09"]
[BlackClock "0:00:52"]

1. d4 {[%clk 0:02:59]}  Nf6 {[%clk 0:02:58]} 2. Bg5 {[%clk 0:02:57]}  e6 {[%clk 0:02:57]} 3. Nd2 {[%clk 0:02:54]}  Be7 {[%clk 0:02:56]} 4. e4 {[%clk 0:02:52]}  d5 {[%clk 0:02:53]} 5. Bxf6 {[%clk 0:02:47]}  Bxf6 {[%clk 0:02:51]} 6. e5 {[%clk 0:02:47]}  Be7 {[%clk 0:02:51]} 7. f4 {[%clk 0:02:47]}  c5 {[%clk 0:02:51]} 8. Ngf3 {[%clk 0:02:47]}  Nc6 {[%clk 0:02:50]} 9. Nb3 {[%clk 0:02:40]}  cxd4 {[%clk 0:02:49]} 10. Nbxd4 {[%clk 0:02:33]}  Qb6 {[%clk 0:02:46]} 11. Nb3 {[%clk 0:02:29]}  Bd7 {[%clk 0:02:42]} 12. Bd3 {[%clk 0:02:26]}  Nb4 {[%clk 0:02:40]} 13. c3 {[%clk 0:02:19]}  Nxd3+ {[%clk 0:02:39]} 14. Qxd3 {[%clk 0:02:19]}  Rc8 {[%clk 0:02:38]} 15. Qd4 {[%clk 0:02:12]}  Bc5 {[%clk 0:02:37]} 16. Nxc5 {[%clk 0:02:11]}  Qxc5 {[%clk 0:02:32]} 17. Qxc5 {[%clk 0:02:10]}  Rxc5 {[%clk 0:02:33]} 18. O-O-O {[%clk 0:02:07]}  Ke7 {[%clk 0:02:30]} 19. Rd4 {[%clk 0:02:00]}  Rhc8 {[%clk 0:02:29]} 20. Kd2 {[%clk 0:01:59]}  Rb5 {[%clk 0:02:24]} 21. b3 {[%clk 0:01:56]}  Rbc5 {[%clk 0:02:22]} 22. Rc1 {[%clk 0:01:54]}  a5 {[%clk 0:02:17]} 23. a4 {[%clk 0:01:50]}  b5 {[%clk 0:02:13]} 24. axb5 {[%clk 0:01:47]}  Rxb5 {[%clk 0:02:12]} 25. b4 {[%clk 0:01:44]}  axb4 {[%clk 0:02:08]} 26. cxb4 {[%clk 0:01:40]}  Rcb8 {[%clk 0:01:59]} 27. Rb1 {[%clk 0:01:34]}  f6 {[%clk 0:01:59]} 28. Rb2 {[%clk 0:01:29]}  Be8 {[%clk 0:01:56]} 29. g4 {[%clk 0:01:25]}  Bg6 {[%clk 0:01:41]} 30. exf6+ {[%clk 0:01:11]}  gxf6 {[%clk 0:01:40]} 31. Ke3 {[%clk 0:00:56]}  h5 {[%clk 0:01:34]} 32. h3 {[%clk 0:00:43]}  hxg4 {[%clk 0:01:33]} 33. hxg4 {[%clk 0:00:44]}  Kd6 {[%clk 0:01:25]} 34. f5 {[%clk 0:00:22]}  exf5 {[%clk 0:01:24]} 35. gxf5 {[%clk 0:00:22]}  Bxf5 {[%clk 0:01:24]} 36. Rh4 {[%clk 0:00:21]}  Be4 {[%clk 0:01:22]} 37. Nd2 {[%clk 0:00:20]}  Rxb4 {[%clk 0:01:21]} 38. Rxb4 {[%clk 0:00:20]}  Rxb4 {[%clk 0:01:19]} 39. Nxe4+ {[%clk 0:00:20]}  dxe4 {[%clk 0:01:14]} 40. Rxe4 {[%clk 0:00:21]}  Rb1 {[%clk 0:01:03]} 41. Kf2 {[%clk 0:00:12]}  Kd5 {[%clk 0:01:02]} 42. Re8 {[%clk 0:00:12]}  f5 {[%clk 0:01:01]} 43. Re7 {[%clk 0:00:13]}  Rb4 {[%clk 0:00:59]} 44. Kf3 {[%clk 0:00:10]}  Kd6 {[%clk 0:00:54]} 45. Re8 {[%clk 0:00:10]}  Kd5 {[%clk 0:00:52]} 46. Re7 {[%clk 0:00:09]}  Re4 {[%clk 0:00:50]} 47. Rxe4 {[%clk 0:00:07]}  fxe4+ {[%clk 0:00:51]} 48. Ke3 {[%clk 0:00:08]}  Ke5 {[%clk 0:00:51]} 49. Ke2 {[%clk 0:00:08]}  Kd4 {[%clk 0:00:51]} 50. Kd2 {[%clk 0:00:08]}  e3+ {[%clk 0:00:51]} 51. Ke2 {[%clk 0:00:09]}  Ke4 {[%clk 0:00:51]} 52. Ke1 {[%clk 0:00:08]}  Kd3 {[%clk 0:00:51]} 53. Kd1 {[%clk 0:00:08]}  e2+ {[%clk 0:00:51]} 54. Ke1 {[%clk 0:00:09]}  Ke3 {[%clk 0:00:52]} 1/2-1/2


[Site "https://www.chess.com"]